[Event "Early-Titled-Tuesday-Blitz-March-05-2024"]
[Site "Chess.com"]
[Date "2024.03.05"]
[Round "1"]
[White "Iball95"]
[Black "killer_dreams"]
[Result "1-0"]
[WhiteElo "2902"]
[BlackElo "2485"]
[TimeControl "180+1"]
[EndTime "8:04:33 PST"]
[Termination "Iball95 won by resignation"]

1. e4 {[%clk 0:02:59.7]} 1... e5 {[%clk 0:02:57.2]} 2. Nf3 {[%clk 0:02:59.1]}
2... Nc6 {[%clk 0:02:57.3]} 3. Nc3 {[%clk 0:03:00]} 3... Nf6 {[%clk 0:02:57.3]}
4. Bb5 {[%clk 0:03:00.4]} 4... Bd6 {[%clk 0:02:53.8]} 5. a3 {[%clk 0:02:59.8]}
5... O-O {[%clk 0:02:52.8]} 6. d3 {[%clk 0:03:00.3]} 6... a6 {[%clk 0:02:51.9]}
7. Bc4 {[%clk 0:03:00.4]} 7... Bc5 {[%clk 0:02:50.3]} 8. Be3 {[%clk 0:02:57]}
8... d6 {[%clk 0:02:49.6]} 9. Nd5 {[%clk 0:02:53.9]} 9... Nxd5 {[%clk
0:02:43.8]} 10. Bxd5 {[%clk 0:02:54.8]} 10... Bxe3 {[%clk 0:02:40]} 11. fxe3
{[%clk 0:02:55.7]} 11... Be6 {[%clk 0:02:40.9]} 12. Bxc6 {[%clk 0:02:53.3]}
12... bxc6 {[%clk 0:02:40.7]} 13. O-O {[%clk 0:02:54.2]} 13... f5 {[%clk
0:02:36.1]} 14. exf5 {[%clk 0:02:54]} 14... Bxf5 {[%clk 0:02:37]} 15. e4 {[%clk
0:02:54.2]} 15... Bd7 {[%clk 0:02:35.7]} 16. Qd2 {[%clk 0:02:52]} 16... Qb8
{[%clk 0:02:32.2]} 17. b3 {[%clk 0:02:51]} 17... Qb6+ {[%clk 0:02:31.9]} 18. Kh1
{[%clk 0:02:51.3]} 18... Rf4 {[%clk 0:02:27.3]} 19. d4 {[%clk 0:02:31.7]} 19...
Rxe4 {[%clk 0:02:17.9]} 20. dxe5 {[%clk 0:02:31.7]} 20... d5 {[%clk 0:02:18.7]}
21. Rae1 {[%clk 0:02:29.2]} 21... Bf5 {[%clk 0:02:00.3]} 22. Ng5 {[%clk
0:02:19.4]} 22... Rxe1 {[%clk 0:01:57.5]} 23. Qxe1 {[%clk 0:02:17.6]} 23... Bxc2
{[%clk 0:01:46.8]} 24. e6 {[%clk 0:02:14.5]} 24... Bg6 {[%clk 0:01:41.4]} 25. e7
{[%clk 0:02:13.2]} 25... c5 {[%clk 0:01:34.8]} 26. Qe6+ {[%clk 0:01:35]} 26...
Qxe6 {[%clk 0:01:31.4]} 27. Nxe6 {[%clk 0:01:35.9]} 27... Bf7 {[%clk 0:01:23.4]}
28. Nd8 {[%clk 0:01:36]} 1-0

[Event "Early-Titled-Tuesday-Blitz-March-05-2024"]
[Site "Chess.com"]
[Date "2024.03.05"]
[Round "1"]
[White "IlanSchnaider"]
[Black "Azalea95"]
[Result "1-0"]
[WhiteElo "2658"]
[BlackElo "2352"]
[TimeControl "180+1"]
[EndTime "8:04:36 PST"]
[Termination "IlanSchnaider won by resignation"]

1. e4 {[%clk 0:03:00.9]} 1... e6 {[%clk 0:02:59.8]} 2. d4 {[%clk 0:02:59.4]}
2... d5 {[%clk 0:02:59.8]} 3. e5 {[%clk 0:03:00.1]} 3... c5 {[%clk 0:02:59.9]}
4. c3 {[%clk 0:03:00.1]} 4... Nc6 {[%clk 0:02:59.6]} 5. Nf3 {[%clk 0:03:00.1]}
5... Nge7 {[%clk 0:02:59.5]} 6. Bd3 {[%clk 0:02:56.5]} 6... cxd4 {[%clk
0:02:59.5]} 7. cxd4 {[%clk 0:02:56.7]} 7... Nf5 {[%clk 0:03:00.2]} 8. Bxf5
{[%clk 0:02:56.2]} 8... exf5 {[%clk 0:03:01.1]} 9. O-O {[%clk 0:02:56.7]} 9...
Be6 {[%clk 0:03:00.6]} 10. Nc3 {[%clk 0:02:57.2]} 10... Be7 {[%clk 0:03:00.7]}
11. Be3 {[%clk 0:02:56.3]} 11... g5 {[%clk 0:02:58]} 12. g3 {[%clk 0:02:22.5]}
12... f4 {[%clk 0:02:49.1]} 13. gxf4 {[%clk 0:02:19.5]} 13... gxf4 {[%clk
0:02:49.3]} 14. Bxf4 {[%clk 0:02:19.6]} 14... Bh3 {[%clk 0:02:43.5]} 15. Re1
{[%clk 0:02:17.2]} 15... Rg8+ {[%clk 0:02:41.9]} 16. Bg3 {[%clk 0:02:16.8]}
16... h5 {[%clk 0:02:42.2]} 17. e6 {[%clk 0:02:08.4]} 17... fxe6 {[%clk
0:02:30.3]} 18. Ne5 {[%clk 0:02:02.4]} 18... Nxe5 {[%clk 0:02:20.3]} 19. Qxh5+
{[%clk 0:01:59.9]} 19... Kd7 {[%clk 0:01:59.9]} 20. Qxe5 {[%clk 0:01:48.6]}
20... Rg5 {[%clk 0:01:56.9]} 21. Qf4 {[%clk 0:01:42.1]} 21... Rf5 {[%clk
0:01:37.8]} 22. Qh6 {[%clk 0:01:36.3]} 1-0

[Event "Early-Titled-Tuesday-Blitz-March-05-2024"]
[Site "Chess.com"]
[Date "2024.03.05"]
[Round "1"]
[White "lamomiajunior"]
[Black "tomesao"]
[Result "1-0"]
[WhiteElo "2758"]
[BlackElo "2434"]
[TimeControl "180+1"]
[EndTime "8:04:40 PST"]
[Termination "lamomiajunior won by resignation"]

1. d4 {[%clk 0:03:00.9]} 1... Nf6 {[%clk 0:02:53]} 2. c4 {[%clk 0:03:01.1]} 2...
e6 {[%clk 0:02:51]} 3. Nc3 {[%clk 0:03:00.2]} 3... Bb4 {[%clk 0:02:49.9]} 4. f3
{[%clk 0:03:00.3]} 4... d5 {[%clk 0:02:46]} 5. a3 {[%clk 0:03:00]} 5... Bxc3+
{[%clk 0:02:45.5]} 6. bxc3 {[%clk 0:03:00.9]} 6... O-O {[%clk 0:02:43.9]} 7.
cxd5 {[%clk 0:03:01.1]} 7... exd5 {[%clk 0:02:43.9]} 8. e3 {[%clk 0:03:01.5]}
8... c5 {[%clk 0:02:44.1]} 9. Bd3 {[%clk 0:03:01.7]} 9... Nc6 {[%clk 0:02:44.1]}
10. Ne2 {[%clk 0:03:02.2]} 10... Re8 {[%clk 0:02:43.4]} 11. O-O {[%clk
0:03:02.6]} 11... cxd4 {[%clk 0:02:31.5]} 12. cxd4 {[%clk 0:03:01.4]} 12... Be6
{[%clk 0:02:31.4]} 13. Bb2 {[%clk 0:02:58.5]} 13... Qd7 {[%clk 0:02:30.7]} 14.
e4 {[%clk 0:02:58]} 14... dxe4 {[%clk 0:02:11.6]} 15. fxe4 {[%clk 0:02:58.9]}
15... Bg4 {[%clk 0:02:11.4]} 16. e5 {[%clk 0:02:38.4]} 16... Nd5 {[%clk
0:02:08.1]} 17. Qd2 {[%clk 0:02:38.5]} 17... Bh5 {[%clk 0:01:55.9]} 18. Ng3
{[%clk 0:02:30.5]} 18... Bg6 {[%clk 0:01:54.4]} 19. Bxg6 {[%clk 0:02:29.6]}
19... hxg6 {[%clk 0:01:53.5]} 20. Ne4 {[%clk 0:02:30.5]} 20... Re6 {[%clk
0:01:28.8]} 21. Nc5 {[%clk 0:02:29.8]} 21... Qe7 {[%clk 0:01:27.5]} 22. Nxe6
{[%clk 0:02:30]} 22... Qxe6 {[%clk 0:01:28.4]} 23. Rae1 {[%clk 0:02:29.4]} 23...
Rd8 {[%clk 0:01:24]} 24. Qe2 {[%clk 0:02:29]} 24... Nb6 {[%clk 0:01:22.4]} 25.
Kh1 {[%clk 0:02:25.5]} 25... Rd5 {[%clk 0:01:10.2]} 26. Qf2 {[%clk 0:02:23]}
26... Nc4 {[%clk 0:01:08.2]} 27. Ba1 {[%clk 0:02:16.3]} 27... b5 {[%clk
0:01:07.8]} 28. Re4 {[%clk 0:02:09.4]} 28... Ne7 {[%clk 0:01:07.2]} 29. Rh4
{[%clk 0:02:07.4]} 29... Nf5 {[%clk 0:01:05.6]} 30. Rh3 {[%clk 0:02:07.9]} 30...
Rd7 {[%clk 0:00:58]} 31. Qf4 {[%clk 0:01:57.8]} 31... Nxa3 {[%clk 0:00:49.9]}
32. Rxa3 {[%clk 0:01:56.6]} 1-0

[Event "Early-Titled-Tuesday-Blitz-March-05-2024"]
[Site "Chess.com"]
[Date "2024.03.05"]
[Round "1"]
[White "LangesNasenhaar"]
[Black "Polish_fighter3000"]
[Result "0-1"]
[WhiteElo "2523"]
[BlackElo "3110"]
[TimeControl "180+1"]
[EndTime "8:04:48 PST"]
[Termination "Polish_fighter3000 won by resignation"]

1. d4 {[%clk 0:03:00.9]} 1... Nf6 {[%clk 0:02:58.9]} 2. Nf3 {[%clk 0:03:00.3]}
2... g6 {[%clk 0:02:59.2]} 3. Bg5 {[%clk 0:02:56.6]} 3... Bg7 {[%clk 0:02:58.4]}
4. Nbd2 {[%clk 0:02:57.1]} 4... h6 {[%clk 0:02:58]} 5. Bh4 {[%clk 0:02:55.3]}
5... d6 {[%clk 0:02:55.2]} 6. e4 {[%clk 0:02:53.9]} 6... g5 {[%clk 0:02:54.5]}
7. Bg3 {[%clk 0:02:53.3]} 7... Nh5 {[%clk 0:02:54.6]} 8. c3 {[%clk 0:02:50.5]}
8... e6 {[%clk 0:02:53.7]} 9. Be2 {[%clk 0:02:47.2]} 9... Nd7 {[%clk 0:02:52.8]}
10. O-O {[%clk 0:02:45.4]} 10... Nxg3 {[%clk 0:02:42.1]} 11. hxg3 {[%clk
0:02:45]} 11... g4 {[%clk 0:02:41.6]} 12. Nh2 {[%clk 0:02:34]} 12... h5 {[%clk
0:02:41.6]} 13. a4 {[%clk 0:02:31.9]} 13... Qg5 {[%clk 0:02:34.7]} 14. Nc4
{[%clk 0:02:25]} 14... b6 {[%clk 0:02:00.4]} 15. Qd2 {[%clk 0:02:19.7]} 15...
Qg6 {[%clk 0:01:52.2]} 16. Rfe1 {[%clk 0:02:09.1]} 16... Bb7 {[%clk 0:01:51.5]}
17. d5 {[%clk 0:01:49.7]} 17... Nc5 {[%clk 0:01:49]} 18. dxe6 {[%clk 0:01:48.2]}
18... fxe6 {[%clk 0:01:31.5]} 19. e5 {[%clk 0:01:48]} 19... d5 {[%clk
0:01:22.8]} 20. Na3 {[%clk 0:01:23.7]} 20... Nb3 {[%clk 0:01:22.9]} 21. Qe3
{[%clk 0:01:18.4]} 21... Bh6 {[%clk 0:01:20.6]} 22. Qd3 {[%clk 0:01:11.7]} 22...
Qxd3 {[%clk 0:01:20.4]} 23. Bxd3 {[%clk 0:01:12.1]} 23... Nxa1 {[%clk 0:01:21]}
24. Rxa1 {[%clk 0:01:11.9]} 24... O-O-O {[%clk 0:01:17.2]} 0-1

[Event "Early-Titled-Tuesday-Blitz-March-05-2024"]
[Site "Chess.com"]
[Date "2024.03.05"]
[Round "1"]
[White "Masterbeaterr"]
[Black "Kobalia"]
[Result "0-1"]
[WhiteElo "2447"]
[BlackElo "2792"]
[TimeControl "180+1"]
[EndTime "8:04:48 PST"]
[Termination "Kobalia won by resignation"]

1. d4 {[%clk 0:03:00.9]} 1... d5 {[%clk 0:02:59.7]} 2. c4 {[%clk 0:03:00.3]}
2... c6 {[%clk 0:03:00]} 3. Nc3 {[%clk 0:02:59.2]} 3... Nf6 {[%clk 0:02:58]} 4.
e3 {[%clk 0:02:58.5]} 4... a6 {[%clk 0:02:56.9]} 5. c5 {[%clk 0:02:56.9]} 5...
Bf5 {[%clk 0:02:55.8]} 6. Bd3 {[%clk 0:02:56.1]} 6... Bxd3 {[%clk 0:02:55]} 7.
Qxd3 {[%clk 0:02:57]} 7... Nbd7 {[%clk 0:02:54]} 8. Nf3 {[%clk 0:02:57.2]} 8...
Qc7 {[%clk 0:02:53.9]} 9. O-O {[%clk 0:02:56.8]} 9... e5 {[%clk 0:02:53.8]} 10.
dxe5 {[%clk 0:02:52.4]} 10... Nxe5 {[%clk 0:02:53.1]} 11. Nxe5 {[%clk
0:02:51.9]} 11... Qxe5 {[%clk 0:02:54]} 12. Na4 {[%clk 0:02:47.3]} 12... Ng4
{[%clk 0:02:48.8]} 13. g3 {[%clk 0:02:46]} 13... Qh5 {[%clk 0:02:48.8]} 14. h4
{[%clk 0:02:42.2]} 14... Be7 {[%clk 0:02:47.3]} 15. e4 {[%clk 0:02:36.6]} 15...
Rd8 {[%clk 0:02:35.9]} 16. exd5 {[%clk 0:02:30.6]} 16... Rxd5 {[%clk 0:02:33.9]}
17. Qf3 {[%clk 0:02:30.5]} 17... O-O {[%clk 0:02:26.1]} 18. Bf4 {[%clk
0:02:25.6]} 18... Rfd8 {[%clk 0:02:13.1]} 19. Rad1 {[%clk 0:02:13.5]} 19... h6
{[%clk 0:01:54.4]} 20. Rxd5 {[%clk 0:02:06.5]} 20... Rxd5 {[%clk 0:01:53.9]} 21.
Rd1 {[%clk 0:02:06.3]} 21... Qf5 {[%clk 0:01:40.9]} 22. Rxd5 {[%clk 0:01:58.2]}
22... cxd5 {[%clk 0:01:41.8]} 23. Qe2 {[%clk 0:01:55.6]} 23... Bf6 {[%clk
0:01:39.2]} 24. f3 {[%clk 0:01:41.9]} 24... Ne5 {[%clk 0:01:37.4]} 25. Bxe5
{[%clk 0:01:35.5]} 25... Bxe5 {[%clk 0:01:37]} 26. Kg2 {[%clk 0:01:34.4]} 26...
d4 {[%clk 0:01:32]} 27. f4 {[%clk 0:01:25.1]} 27... Bf6 {[%clk 0:01:30.5]} 28.
b4 {[%clk 0:01:14.7]} 28... d3 {[%clk 0:01:29.8]} 29. Qd2 {[%clk 0:01:12.3]}
29... Qe4+ {[%clk 0:01:28.9]} 30. Kh3 {[%clk 0:01:11.1]} 30... h5 {[%clk
0:01:25.2]} 31. Kh2 {[%clk 0:01:11]} 31... Qe2+ {[%clk 0:01:24.7]} 32. Qxe2
{[%clk 0:01:10.8]} 32... dxe2 {[%clk 0:01:25]} 0-1

[Event "Early-Titled-Tuesday-Blitz-March-05-2024"]
[Site "Chess.com"]
[Date "2024.03.05"]
[Round "1"]
[White "AlexTruskavetsky"]
[Black "margarita_2703"]
[Result "1-0"]
[WhiteElo "2690"]
[BlackElo "2388"]
[TimeControl "180+1"]
[EndTime "8:05:07 PST"]
[Termination "AlexTruskavetsky won by resignation"]

1. d4 {[%clk 0:03:00]} 1... d5 {[%clk 0:02:59.8]} 2. c4 {[%clk 0:02:59.2]} 2...
e6 {[%clk 0:02:59.9]} 3. Nc3 {[%clk 0:02:59.1]} 3... Nf6 {[%clk 0:02:59.9]} 4.
cxd5 {[%clk 0:02:58.9]} 4... exd5 {[%clk 0:02:59.2]} 5. Bg5 {[%clk 0:02:58.8]}
5... Be7 {[%clk 0:02:56.7]} 6. e3 {[%clk 0:02:58.9]} 6... h6 {[%clk 0:02:57.3]}
7. Bh4 {[%clk 0:02:58.8]} 7... O-O {[%clk 0:02:57.8]} 8. Bd3 {[%clk 0:02:58.8]}
8... Nbd7 {[%clk 0:02:54.6]} 9. Nge2 {[%clk 0:02:57.3]} 9... Re8 {[%clk
0:02:54.6]} 10. O-O {[%clk 0:02:56.1]} 10... c6 {[%clk 0:02:54.6]} 11. Qc2
{[%clk 0:02:55]} 11... Ne4 {[%clk 0:02:54.8]} 12. Bxe7 {[%clk 0:02:54.9]} 12...
Qxe7 {[%clk 0:02:55.7]} 13. Rae1 {[%clk 0:02:53.9]} 13... Ndf6 {[%clk
0:02:52.5]} 14. a3 {[%clk 0:02:46.1]} 14... Bf5 {[%clk 0:02:48.9]} 15. f3 {[%clk
0:02:28.9]} 15... Nxc3 {[%clk 0:02:48.3]} 16. Nxc3 {[%clk 0:02:29.8]} 16... Bxd3
{[%clk 0:02:48]} 17. Qxd3 {[%clk 0:02:30.7]} 17... Rad8 {[%clk 0:02:48]} 18. b4
{[%clk 0:02:30]} 18... a6 {[%clk 0:02:47.1]} 19. Na4 {[%clk 0:02:26.7]} 19...
Nd7 {[%clk 0:02:46.1]} 20. Rf2 {[%clk 0:02:19.8]} 20... b5 {[%clk 0:02:46.1]}
21. Nc5 {[%clk 0:02:12.7]} 21... Nxc5 {[%clk 0:02:45.8]} 22. bxc5 {[%clk
0:02:13.6]} 22... a5 {[%clk 0:02:45.2]} 23. Qc3 {[%clk 0:02:13.5]} 23... Qc7
{[%clk 0:02:43.4]} 24. e4 {[%clk 0:02:11.8]} 24... dxe4 {[%clk 0:02:41.2]} 25.
fxe4 {[%clk 0:02:12.7]} 25... a4 {[%clk 0:02:41.4]} 26. Rd2 {[%clk 0:01:58.4]}
26... Rd7 {[%clk 0:02:39.4]} 27. Qf3 {[%clk 0:01:49.8]} 27... Red8 {[%clk
0:02:38.5]} 28. Red1 {[%clk 0:01:50.2]} 28... Qa5 {[%clk 0:02:36.1]} 29. d5
{[%clk 0:01:28.7]} 29... b4 {[%clk 0:02:32.5]} 30. axb4 {[%clk 0:01:21.6]} 30...
Qxb4 {[%clk 0:02:31.4]} 31. Qe3 {[%clk 0:01:21.6]} 31... a3 {[%clk 0:02:30.3]}
32. d6 {[%clk 0:01:21.1]} 32... Ra8 {[%clk 0:02:26.9]} 33. Ra2 {[%clk
0:01:03.6]} 33... Ra5 {[%clk 0:02:22]} 34. Rc1 {[%clk 0:01:02.8]} 34... Rb7
{[%clk 0:02:20]} 35. e5 {[%clk 0:01:02]} 35... Kf8 {[%clk 0:02:15.3]} 36. e6
{[%clk 0:00:59.6]} 36... fxe6 {[%clk 0:02:11.3]} 37. Qxe6 {[%clk 0:00:52.4]}
37... Qd4+ {[%clk 0:02:07.7]} 38. Rf2+ {[%clk 0:00:52.2]} 38... Qxf2+ {[%clk
0:02:03.7]} 39. Kxf2 {[%clk 0:00:53.1]} 39... Rb2+ {[%clk 0:01:58.7]} 40. Kg3
{[%clk 0:00:45.1]} 40... a2 {[%clk 0:01:58.5]} 41. Rf1+ {[%clk 0:00:44.5]} 1-0

[Event "Early-Titled-Tuesday-Blitz-March-05-2024"]
[Site "Chess.com"]
[Date "2024.03.05"]
[Round "1"]
[White "ChessboArt"]
[Black "wadsy27"]
[Result "0-1"]
[WhiteElo "2277"]
[BlackElo "2605"]
[TimeControl "180+1"]
[EndTime "8:05:08 PST"]
[Termination "wadsy27 won by resignation"]

1. Nf3 {[%clk 0:03:00.9]} 1... d5 {[%clk 0:02:55.3]} 2. g3 {[%clk 0:03:00.9]}
2... c6 {[%clk 0:02:55.9]} 3. Bg2 {[%clk 0:03:01.1]} 3... Nf6 {[%clk 0:02:56.5]}
4. b3 {[%clk 0:03:01.4]} 4... Bf5 {[%clk 0:02:56.7]} 5. Bb2 {[%clk 0:03:01.7]}
5... e6 {[%clk 0:02:57.3]} 6. O-O {[%clk 0:03:00.5]} 6... h6 {[%clk 0:02:57.4]}
7. d3 {[%clk 0:03:00.7]} 7... a5 {[%clk 0:02:57.1]} 8. a3 {[%clk 0:03:00.6]}
8... Be7 {[%clk 0:02:56.1]} 9. Nbd2 {[%clk 0:03:01]} 9... O-O {[%clk 0:02:55.8]}
10. Qe1 {[%clk 0:03:01.3]} 10... Bh7 {[%clk 0:02:56.2]} 11. e4 {[%clk
0:03:01.4]} 11... Na6 {[%clk 0:02:54.8]} 12. Qe2 {[%clk 0:03:00.8]} 12... b5
{[%clk 0:02:51.2]} 13. a4 {[%clk 0:02:16.1]} 13... Nb4 {[%clk 0:02:41.4]} 14. e5
{[%clk 0:02:03.4]} 14... Nd7 {[%clk 0:02:38.4]} 15. Nd4 {[%clk 0:01:59.5]} 15...
bxa4 {[%clk 0:02:21.3]} 16. Nxc6 {[%clk 0:01:49.3]} 16... Nxc6 {[%clk
0:02:18.2]} 17. Rxa4 {[%clk 0:01:47.1]} 17... Nb4 {[%clk 0:02:15]} 18. Nf3
{[%clk 0:01:45.7]} 18... Nc5 {[%clk 0:02:12]} 19. Raa1 {[%clk 0:01:45.6]} 19...
Rc8 {[%clk 0:02:06.3]} 20. Nd4 {[%clk 0:01:44]} 20... Nxc2 {[%clk 0:02:02.2]}
21. Qxc2 {[%clk 0:01:39.7]} 21... Bxd3 {[%clk 0:01:32.6]} 22. Qd1 {[%clk
0:01:39.5]} 22... Bxf1 {[%clk 0:01:31.6]} 23. Bxf1 {[%clk 0:01:40.4]} 23... Qb6
{[%clk 0:01:28.4]} 24. Bc3 {[%clk 0:01:29.4]} 24... Nxb3 {[%clk 0:01:23.1]} 25.
Nxb3 {[%clk 0:01:22.7]} 25... Rxc3 {[%clk 0:01:19.7]} 26. Nxa5 {[%clk
0:01:12.9]} 26... Bc5 {[%clk 0:01:13.2]} 0-1

[Event "Early-Titled-Tuesday-Blitz-March-05-2024"]
[Site "Chess.com"]
[Date "2024.03.05"]
[Round "1"]
[White "Chessdreamer2020"]
[Black "AdrianaPalao"]
[Result "1-0"]
[WhiteElo "2529"]
[BlackElo "1934"]
[TimeControl "180+1"]
[EndTime "8:05:08 PST"]
[Termination "Chessdreamer2020 won by resignation"]

1. e4 {[%clk 0:02:59.4]} 1... e5 {[%clk 0:03:00]} 2. Nf3 {[%clk 0:02:59]} 2...
d6 {[%clk 0:03:00.8]} 3. Bc4 {[%clk 0:02:57.6]} 3... Nd7 {[%clk 0:03:00.8]} 4.
O-O {[%clk 0:02:57.1]} 4... Be7 {[%clk 0:03:01.1]} 5. d4 {[%clk 0:02:56]} 5...
Ngf6 {[%clk 0:03:00.8]} 6. Nc3 {[%clk 0:02:55.8]} 6... O-O {[%clk 0:03:00.5]} 7.
Qe2 {[%clk 0:02:55.8]} 7... c6 {[%clk 0:03:00.8]} 8. a4 {[%clk 0:02:55]} 8...
Qc7 {[%clk 0:03:01.1]} 9. Rd1 {[%clk 0:02:54.6]} 9... b6 {[%clk 0:03:00.2]} 10.
d5 {[%clk 0:02:51.9]} 10... Bb7 {[%clk 0:03:00.1]} 11. dxc6 {[%clk 0:02:51.7]}
11... Bxc6 {[%clk 0:03:01]} 12. Bb3 {[%clk 0:02:45.1]} 12... Nc5 {[%clk
0:03:00.6]} 13. Bd5 {[%clk 0:02:39.4]} 13... Bxd5 {[%clk 0:02:36.6]} 14. Nxd5
{[%clk 0:02:39.2]} 14... Nxd5 {[%clk 0:02:36.6]} 15. Rxd5 {[%clk 0:02:39.7]}
15... Ne6 {[%clk 0:02:36.4]} 16. c3 {[%clk 0:02:36.8]} 16... f5 {[%clk
0:02:31.5]} 17. exf5 {[%clk 0:02:34.1]} 17... Rxf5 {[%clk 0:02:32.4]} 18. Be3
{[%clk 0:02:26.8]} 18... Raf8 {[%clk 0:02:31.6]} 19. Rad1 {[%clk 0:02:26.1]}
19... Qc6 {[%clk 0:02:21.4]} 20. Qb5 {[%clk 0:02:18.9]} 20... Qa8 {[%clk
0:02:06.7]} 21. Qd7 {[%clk 0:02:13.6]} 21... Nd4 {[%clk 0:01:52.9]} 22. Bxd4
{[%clk 0:01:52.2]} 22... Qxd5 {[%clk 0:01:47]} 23. Qxe7 {[%clk 0:01:51.7]} 23...
exd4 {[%clk 0:01:45.2]} 24. Rxd4 {[%clk 0:01:52.1]} 24... Qa2 {[%clk 0:01:35.4]}
25. Qxd6 {[%clk 0:01:51.8]} 25... Qa1+ {[%clk 0:01:24.6]} 26. Rd1 {[%clk
0:01:50.8]} 26... Qxa4 {[%clk 0:01:24.4]} 27. Qe6+ {[%clk 0:01:48.1]} 27... Kh8
{[%clk 0:01:24.2]} 28. b3 {[%clk 0:01:42.5]} 28... Qa5 {[%clk 0:01:14]} 29. b4
{[%clk 0:01:38.4]} 29... Qa3 {[%clk 0:01:12.5]} 30. Qxf5 {[%clk 0:01:33.8]}
30... Rg8 {[%clk 0:01:02.4]} 31. Ng5 {[%clk 0:01:30.9]} 1-0

[Event "Early-Titled-Tuesday-Blitz-March-05-2024"]
[Site "Chess.com"]
[Date "2024.03.05"]
[Round "1"]
[White "the_blue_pill"]
[Black "SnekkerAndersen"]
[Result "1-0"]
[WhiteElo "2357"]
[BlackElo "2619"]
[TimeControl "180+1"]
[EndTime "8:05:10 PST"]
[Termination "the_blue_pill won by resignation"]

1. e4 {[%clk 0:02:55.5]} 1... e6 {[%clk 0:02:55.5]} 2. d4 {[%clk 0:02:51.8]}
2... d5 {[%clk 0:02:41.8]} 3. e5 {[%clk 0:02:51.8]} 3... c5 {[%clk 0:02:37.5]}
4. c3 {[%clk 0:02:52.3]} 4... Nc6 {[%clk 0:02:36.6]} 5. Nf3 {[%clk 0:02:52.8]}
5... Bd7 {[%clk 0:02:37.2]} 6. a3 {[%clk 0:02:52.1]} 6... f6 {[%clk 0:02:34.2]}
7. Bd3 {[%clk 0:02:49.6]} 7... Qc7 {[%clk 0:02:32.7]} 8. O-O {[%clk 0:02:43.8]}
8... fxe5 {[%clk 0:02:27.8]} 9. Nxe5 {[%clk 0:02:33.6]} 9... Nxe5 {[%clk
0:02:28]} 10. Bf4 {[%clk 0:02:32.9]} 10... Bd6 {[%clk 0:02:26.6]} 11. dxe5
{[%clk 0:02:29.8]} 11... Be7 {[%clk 0:01:51.6]} 12. Qh5+ {[%clk 0:02:27.3]}
12... Kd8 {[%clk 0:01:51.9]} 13. Qf7 {[%clk 0:02:10.6]} 13... Qb6 {[%clk
0:00:54.8]} 14. Qxg7 {[%clk 0:01:58.7]} 14... Qxb2 {[%clk 0:00:54.2]} 15. Qxh8
{[%clk 0:01:51.5]} 15... Kc7 {[%clk 0:00:51.9]} 16. Nd2 {[%clk 0:01:41.1]} 16...
Qxc3 {[%clk 0:00:52.2]} 17. Bxh7 {[%clk 0:01:33.7]} 17... Nh6 {[%clk 0:00:42.7]}
18. Qxa8 {[%clk 0:01:29.9]} 18... Nf7 {[%clk 0:00:42.9]} 19. Qxa7 {[%clk
0:01:23.1]} 19... Bg5 {[%clk 0:00:41.3]} 20. Rac1 {[%clk 0:01:13.3]} 1-0

[Event "Early-Titled-Tuesday-Blitz-March-05-2024"]
[Site "Chess.com"]
[Date "2024.03.05"]
[Round "1"]
[White "Egor_Koshulyan"]
[Black "schachlana"]
[Result "1-0"]
[WhiteElo "2700"]
[BlackElo "2392"]
[TimeControl "180+1"]
[EndTime "8:05:14 PST"]
[Termination "Egor_Koshulyan won by checkmate"]

1. f4 {[%clk 0:03:00.9]} 1... g6 {[%clk 0:02:56.8]} 2. Nf3 {[%clk 0:03:00.7]}
2... Bg7 {[%clk 0:02:57.7]} 3. g3 {[%clk 0:03:01.1]} 3... d6 {[%clk 0:02:57]} 4.
Bg2 {[%clk 0:03:01.5]} 4... Nf6 {[%clk 0:02:57.9]} 5. O-O {[%clk 0:03:01.9]}
5... O-O {[%clk 0:02:58.2]} 6. d3 {[%clk 0:03:02.5]} 6... Nbd7 {[%clk
0:02:55.7]} 7. e4 {[%clk 0:03:02.8]} 7... e5 {[%clk 0:02:55.9]} 8. Nc3 {[%clk
0:03:02.9]} 8... h6 {[%clk 0:02:55.6]} 9. h3 {[%clk 0:03:02.8]} 9... Re8 {[%clk
0:02:55.2]} 10. Be3 {[%clk 0:03:02.8]} 10... c6 {[%clk 0:02:54.5]} 11. Qd2
{[%clk 0:03:02.2]} 11... Qc7 {[%clk 0:02:54.3]} 12. fxe5 {[%clk 0:03:01.5]}
12... dxe5 {[%clk 0:02:45.4]} 13. Bxh6 {[%clk 0:03:01.3]} 13... Qb6+ {[%clk
0:02:41.1]} 14. Kh2 {[%clk 0:02:57.1]} 14... Qxb2 {[%clk 0:02:40.8]} 15. Bxg7
{[%clk 0:02:38.6]} 15... Kxg7 {[%clk 0:02:41.7]} 16. Nh4 {[%clk 0:02:39]} 16...
Qb4 {[%clk 0:02:01.5]} 17. Rf2 {[%clk 0:02:16.7]} 17... Re6 {[%clk 0:01:51.9]}
18. Raf1 {[%clk 0:02:16.6]} 18... b6 {[%clk 0:01:33]} 19. g4 {[%clk 0:02:12.4]}
19... Re7 {[%clk 0:01:15.1]} 20. Rxf6 {[%clk 0:02:04.7]} 20... Nxf6 {[%clk
0:01:13.2]} 21. Rxf6 {[%clk 0:02:05.6]} 21... Qc5 {[%clk 0:00:58.5]} 22. Rf1
{[%clk 0:01:54.7]} 22... Be6 {[%clk 0:00:58.8]} 23. Qg5 {[%clk 0:01:54.1]} 23...
Rae8 {[%clk 0:00:36.2]} 24. Ne2 {[%clk 0:01:38.7]} 24... Qd6 {[%clk 0:00:29.1]}
25. Ng3 {[%clk 0:01:38.4]} 25... Qd7 {[%clk 0:00:25.5]} 26. Nh5+ {[%clk
0:01:38]} 26... Kh8 {[%clk 0:00:21.1]} 27. Qh6+ {[%clk 0:01:37.3]} 27... Kg8
{[%clk 0:00:21.8]} 28. Qg7# {[%clk 0:01:37.5]} 1-0